fUST/lending_fUST_20240103
["ID","MTS","AMOUNT","RATE_DAILY","PERIOD"]
[309960826,1704233447394,-7334.95,0.00046027,3]
[309960827,1704233447404,-7334.95,0.00046027,3]
[309960828,1704233447413,-7334.95,0.00046027,3]
[309960829,1704233447423,-7334.95,0.00046027,3]
[309960830,1704233447432,-7334.95,0.00046027,3]
[309960831,1704233447442,-7334.95,0.00046027,3]
[309960832,1704233447451,-7334.95,0.00046027,3]
[309960833,1704233447461,-644.40596954,0.00046027,3]
[309960834,1704233447508,-1869.282086,0.00046027,3]
[309960835,1704233447519,-2831.71404576,0.00046027,3]
[309960838,1704233548858,292.22430993,0.00022,4]
[309960845,1704234347101,-1000.0,0.00037054,7]
[309960846,1704234347124,-154.84515485,0.00037055,5]
[309960847,1704234347144,-184.71119037,0.00037079,2]
[309960848,1704234347166,-327.27457803,0.00037179,4]
[309960849,1704234438095,-156.66790441,0.00037178,4]
[309960850,1704234438116,-2671.475768,0.00037179,4]
[309960851,1704234438143,-509.74315087,0.00038189,2]
[309960852,1704234438167,-201.54899924,0.00038189,2]
[309960853,1704234438189,-865.92347507,0.00038546,2]
[309960854,1704234438211,-154.84515485,0.00041423,8]
[309960855,1704234438232,-182.071027,0.00042099,2]
[309960856,1704234438252,-197.332623,0.00042225,2]
[309960857,1704234438272,-171.601333,0.00042239,2]
[309960858,1704234438293,-188.685295,0.00042583,120]
[309960859,1704234438314,-2412.99764575,0.00043068,2]
[309960933,1704234632289,-1000.0,0.00038545,7]
[309960935,1704234632299,-154.84515485,0.00038545,5]
[309960937,1704234632308,-372.70872648,0.00038546,2]
[309960939,1704234632318,-179.04903361,0.0004132,4]
[309960941,1704234632328,-171.18046623,0.00041321,2]
[309960943,1704234632337,-1000.0,0.00043709,14]
[309960945,1704234632347,-497.24154266,0.00043724,5]
[309960947,1704234632356,-3584.2342833,0.00043736,2]
[309960949,1704234632366,-542.72058361,0.00043927,2]
[309960951,1704234632375,-197.332623,0.00044187,2]
[309960953,1704234632385,-2407.5208482,0.00044215,15]
[309960955,1704234632394,-150.83408251,0.00045608,2]
[309960957,1704234632403,-155.0,0.00045868,2]
[309960959,1704234632412,-194.0,0.0004589,2]
[309960961,1704234632421,-1464.51923852,0.00045927,2]
[309960963,1704234632431,-275.0,0.00045927,2]
[309960965,1704234632440,-14488.82040095,0.00045927,2]
[309960967,1704234632449,-160.0,0.00045981,3]
[309960969,1704234632459,-1500.0,0.00046,3]
[309960971,1704234632469,-537.115958,0.00046,11]
[309960973,1704234632478,-8781.0,0.00046016,3]
[309960975,1704234632487,-12644.64,0.00046017,3]
[309960977,1704234632497,-10537.2,0.00046017,3]
[309960979,1704234632507,-3537.57585844,0.00046025,2]
[309960981,1704234632516,-419.16107855,0.00046025,7]
[309960983,1704234632527,-271.77327293,0.00046025,30]
[309960985,1704234632536,-590.09569667,0.00046026,2]
[309960987,1704234632546,-250.0,0.00046026,10]
[309960989,1704234632555,-14118.57729,0.00046026,4]
[309960990,1704234632565,-317.20844759,0.00046027,21]
[309960992,1704234632575,-500.0,0.00046027,21]
[309960994,1704234632585,-500.0,0.00046027,21]
[309960997,1704234632595,-500.0,0.00046027,21]
[309960999,1704234632604,-500.0,0.00046027,21]
[309961001,1704234632614,-500.0,0.00046027,21]
[309961002,1704234632624,-229.49419914,0.00046027,21]
[309961194,1704234638332,-226.339,0.00044714,2]
[309961196,1704234638342,-300.79054456,0.00046017,3]
[309961208,1704234641482,-150.0,0.00045,90]
[309961209,1704234641491,-1680.46013482,0.00046017,3]
[309961240,1704234646203,-342.36884967,0.00038257,2]
[309961241,1704234646259,-28.93679307,0.00038257,2]
[309961242,1704234646269,-512.47450515,0.00046027,21]
[309961243,1704234646363,-500.0,0.00046027,2]
[309961244,1704234646374,-500.0,0.00046027,2]
[309961245,1704234646383,-500.0,0.00046027,21]
[309961246,1704234646392,-500.0,0.00046027,21]
[309961247,1704234646401,-500.0,0.00046027,21]
[309961248,1704234646410,-500.0,0.00046027,21]
[309961249,1704234646420,-500.0,0.00046027,21]
[309961250,1704234646429,-500.0,0.00046027,21]
[309961251,1704234646439,-192.75462368,0.00046027,21]
[309961252,1704234646448,-433.46955527,0.00046027,21]
[309961257,1704235766102,-154.84515485,0.00034506,5]
[309961258,1704235766124,-1000.0,0.00034507,7]
[309961259,1704235766145,-156.66790441,0.00034508,4]
[309961260,1704235766166,-461.28396418,0.00034508,4]
[309961261,1704235766186,-57.92973654,0.00034519,4]
[309961262,1704235768097,-154.12664665,0.00034519,4]
[309961263,1704235768125,-56.52113221,0.00034519,4]
[309961389,1704235838628,-241.16170742,0.00038546,2]
[309961391,1704235838637,-154.84515485,0.00041423,8]
[309961393,1704235838647,-131.12268229,0.00041872,120]
[309961497,1704235841495,-50.14806771,0.00041872,120]
[309961499,1704235841505,-171.601333,0.00042175,2]
[309961501,1704235841514,-1000.0,0.00043925,7]
[309961503,1704235841524,-411.81372241,0.00043926,2]
[309961505,1704235841534,-174.72204,0.00044001,2]
[309961507,1704235841544,-150.83408251,0.00044543,2]
[309961509,1704235841553,-238.0,0.00044755,2]
[309961511,1704235841564,-150.0,0.00044755,2]
[309961513,1704235841574,-398.76444816,0.00045,10]
[309961515,1704235841585,-153.0,0.00045233,2]
[309961517,1704235841596,-153.0,0.00045233,2]
[309961518,1704235841606,-153.0,0.00045233,2]
[309961519,1704235841617,-153.0,0.00045233,2]
[309961520,1704235841628,-175.0,0.00046,2]
[309961521,1704235841637,-2980.231711,0.00046,39]
[309961522,1704235841647,-2869.768289,0.00046,39]
[309961523,1704235841656,-5896.1674347,0.00046014,120]
[309961532,1704235843369,-546.10131354,0.00046014,120]
[309961533,1704235843381,-667.57087698,0.00046014,120]
[309961534,1704235843424,-875.59918679,0.00046014,120]
[309961547,1704235846470,-1050.46761985,0.00046014,120]
[309961548,1704235846482,-439.87303113,0.00046014,120]
[309961605,1704236839093,-169.18776199,0.00029965,2]
[309961612,1704236948127,-383.09455,0.00029585,2]
[309961613,1704236948151,-154.84515485,0.00029962,4]
[309961614,1704236948174,-343.32706477,0.00029962,2]
[309961615,1704236948210,-1019.1311208,0.00029963,2]
[309961616,1704236948230,-559.50319806,0.00029999,2]
[309961617,1704236948250,-739.06665306,0.0003,2]
[309961618,1704236948273,-697.72602384,0.0003,2]
[309961619,1704236948297,-685.0872895,0.0003,4]
[309961620,1704236948319,-24900.0,0.00030249,2]
[309961621,1704236948340,-563.600048,0.00030404,2]
[309961622,1704236948362,-20593.7258283,0.00032858,2]
[309961623,1704236950099,-4865.5443732,0.00032858,2]
[309961624,1704236950120,-4633.75445764,0.00032983,2]
[309961625,1704236958096,-366.24554236,0.00032983,2]
[309961626,1704236958118,-228.38158206,0.00035451,7]
[309961627,1704236959104,-771.61841794,0.00035451,7]
[309961628,1704236959125,-157.0,0.00035452,2]
[309961629,1704236959146,-181.27075,0.00035616,120]
[309961630,1704236959169,-1737.08361358,0.00036723,2]
[309961680,1704237032500,-23.87381712,0.00036723,2]
[309961682,1704237032510,-1038.38310806,0.00038,3]
[309961684,1704237032519,-3159.21070007,0.00038,10]
[309961686,1704237032531,-19753.23279671,0.00038,10]
[309961688,1704237032540,-159.13098974,0.00038263,2]
[309961690,1704237032550,-168.81319519,0.00038546,2]
[309961692,1704237032560,-289.39404889,0.00038546,2]
[309961694,1704237032569,-207.0,0.0003874,2]
[309961696,1704237032579,-154.84515485,0.00040998,8]
[309961698,1704237032588,-4606.02226343,0.00040999,4]
[309961700,1704237032598,-3827.79725373,0.00041,10]
[309961702,1704237032608,-250.0,0.00041009,2]
[309961704,1704237032618,-520.0100584,0.00041096,15]
[309961706,1704237032627,-779.74298254,0.00041423,4]
[309961708,1704237032636,-973.92963115,0.00041423,2]
[309961710,1704237032645,-300.0,0.00041799,30]
[309961712,1704237032656,-2189.74530487,0.00042,2]
[309961714,1704237032665,-257.0,0.00042192,4]
[309961716,1704237032675,-150.84915085,0.00042649,2]
[309961718,1704237032684,-1000.0,0.00043913,7]
[309961720,1704237032693,-274.5424816,0.00043914,2]
[309961722,1704237032702,-383.09455,0.00044378,2]
[309961724,1704237032711,-226.339,0.00044755,2]
[309961726,1704237032721,-6591.78100281,0.000448,30]
[309961728,1704237032730,-12711.07790316,0.000449,6]
[309961730,1704237032739,-457.0,0.00045781,6]
[309961732,1704237032748,-320.57063591,0.00045925,7]
[309961734,1704237032757,-228.90961287,0.00045973,3]
[309961772,1704237038660,-565.21812734,0.00045,4]
[309961773,1704237038715,-434.78187266,0.00045,4]
[309961774,1704237038724,-200.0,0.00045979,60]
[309961775,1704237038734,-220.0,0.00045979,60]
[309961776,1704237038743,-160.0,0.00045981,3]
[309961777,1704237038753,-1456.13777315,0.00045982,4]
[309961778,1704237038764,-1414.28000001,0.00045982,4]
[309961779,1704237038796,-521.0003647,0.00045982,4]
[309961780,1704237038809,-789.31907214,0.00045982,4]
[309961781,1704237038820,-150.0,0.00045997,60]
[309961782,1704237038830,-184.28,0.00045997,60]
[309961783,1704237038840,-150.0,0.00046,39]
[309961784,1704237038850,-150.0,0.00046007,60]
[309961785,1704237038861,-150.0,0.00046007,60]
[309961786,1704237038870,-27730.17012045,0.00046014,120]
[309961787,1704237038881,-527.12954456,0.00046014,120]
[309961795,1704237041728,-420.3880359,0.00046014,120]
[309961796,1704237041740,-4504.31306103,0.00046014,120]
[309961797,1704237041752,-430.29860808,0.00046014,120]
[309961798,1704237041763,-768.31,0.00046014,120]
[309961810,1704237043635,-2252.91383676,0.00046014,120]
[309961833,1704237046606,-1000.0,0.000451,7]
[309961834,1704237046616,-1758.20392712,0.00046014,120]
[309961899,1704237930097,-254.86954284,0.00029865,2]
[309961900,1704237930118,-870.90423159,0.00029865,2]
[309961901,1704237930138,-154.84515485,0.00029866,2]
[309961902,1704237930159,-154.84515485,0.00029866,2]
[309961903,1704237930182,-154.84515485,0.00029867,4]
[309961904,1704237930202,-76.52168427,0.00029869,2]
[309961907,1704238035081,-545.84721559,0.00029869,2]
[309961908,1704238035103,-154.84515485,0.00029869,2]
[309961909,1704238035125,-2998.75034603,0.00029869,2]
[309961910,1704238035149,-108.1895061,0.00029869,2]
[309961911,1704238035171,-157.0194235,0.0003,4]
[309961912,1704238035194,-154.84515485,0.0003,60]
[309961913,1704238035217,-685.0872895,0.00037378,4]
[309961914,1704238035238,-174.72204,0.00037379,2]
[309961915,1704238035260,-182.071027,0.00037653,2]
[309961916,1704238035282,-1477.15564594,0.00038,120]
[309961917,1704238035306,-1000.0,0.00038268,7]
[309961918,1704238035333,-391.56802042,0.00038269,2]
[309961921,1704238148127,-186.64109978,0.00029869,2]
[309961922,1704238148146,-223.830922,0.0003,60]
[309961969,1704238231813,-0.31826847,0.0003,60]
[309961972,1704238231823,-154.84515485,0.0003,4]
[309961975,1704238231832,-154.84515485,0.0003765,5]
[309961978,1704238231841,-1505.23258704,0.00037651,4]
[309961980,1704238231850,-752.191832,0.00037653,2]
[309961983,1704238231859,-156.66790441,0.00038268,4]
[309961985,1704238231869,-323.23536801,0.00038269,2]
[309961988,1704238231878,-4032.09972053,0.00038269,4]
[309961991,1704238231887,-1158.96751312,0.00038546,2]
[309961993,1704238231896,-752.191832,0.00039046,2]
[309961996,1704238231905,-167.421024,0.00039608,2]
[309961999,1704238231914,-155.09664052,0.0004,4]
[309962001,1704238231924,-150.0,0.00040329,2]
[309962004,1704238231932,-752.191832,0.00040439,2]
[309962006,1704238231941,-312.0,0.00040486,2]
[309962008,1704238231950,-24900.0,0.00040486,2]
[309962011,1704238231959,-167.421024,0.00041408,2]
[309962014,1704238231969,-239.79051026,0.00041423,4]
[309962017,1704238231978,-7539.00412724,0.00041423,4]
[309962019,1704238231987,-169.258878,0.00041592,120]
[309962022,1704238231996,-1000.0,0.00041831,7]
[309962025,1704238232005,-752.191832,0.00041832,2]
[309962028,1704238232016,-150.84915085,0.00042615,2]
[309962030,1704238232025,-167.421024,0.00043208,2]
[309962033,1704238232034,-752.191832,0.00043225,2]
[309962034,1704238232043,-724.17633941,0.00043702,30]
[309962036,1704238232052,-200.0,0.00043836,4]
[309962038,1704238232061,-183.02832107,0.00043914,2]
[309962039,1704238232070,-174.722041,0.00044492,2]
[309962040,1704238232079,-231.0,0.00044534,30]
[309962041,1704238232088,-500.0,0.00045,10]
[309962042,1704238232098,-150.0,0.00045,90]
[309962043,1704238232107,-85.70880382,0.00045008,2]
[309962045,1704238232119,-81.71222018,0.00045008,2]
[309962046,1704238232128,-1017.05585138,0.00045912,7]
[309962047,1704238232138,-2050.13203825,0.00045987,3]
[309962048,1704238232149,-1114.74046268,0.00045987,3]
[309962074,1704238237994,-521.0003647,0.00045987,3]
[309962075,1704238238010,-3960.80713437,0.00045987,3]
[309962076,1704238238020,-150.0,0.00045997,60]
[309962077,1704238238030,-150.0,0.00046,39]
[309962078,1704238238041,-3838.9663737,0.00046,110]
[309962079,1704238238053,-2410.18189,0.00046002,4]
[309962080,1704238238064,-151.0,0.00046013,7]
[309962081,1704238238075,-18642.81379452,0.00046013,4]
[309962082,1704238238089,-527.12954456,0.00046013,4]
[309962238,1704238245813,-1495.14454661,0.00046013,4]
[309962304,1704238867380,166.6666672,0.00026882,2]
[309962306,1704238946187,24900.0,0.00026544,2]
[309962310,1704239198686,572.8262502,0.00026321,2]
[309962320,1704239308811,181.820045,0.0002631,2]
[309962325,1704239351168,-559.50319806,0.00027301,2]
[309962326,1704239351189,-154.84515485,0.00027301,2]
[309962327,1704239351210,-974.34166216,0.00027302,2]
[309962328,1704239351231,-899.8529685,0.00027302,2]
[309962329,1704239351252,-178.19911003,0.00027303,2]
[309962330,1704239351273,-154.84515485,0.00027304,4]
[309962331,1704239351293,-343.32706477,0.00027304,2]
[309962332,1704239351313,-22099.98552489,0.00027304,2]
[309962333,1704239351333,-154.84515485,0.00027305,2]
[309962334,1704239351354,-154.84515485,0.00027305,2]
[309962335,1704239351376,-4862.47877363,0.00027305,2]
[309962336,1704239351396,-36759.8431187,0.00027306,2]
[309962337,1704239351415,-6947.49819196,0.00029995,2]
[309962338,1704239351436,-2115.81054665,0.00029997,2]
[309962339,1704239351457,-155.663228,0.0003,4]
[309962340,1704239351478,-685.0872895,0.0003,4]
[309962341,1704239351499,-1000.0,0.00034518,7]
[309962342,1704239351520,-210.64777886,0.00034519,4]
[309962343,1704239351540,-590.09569667,0.00035,2]
[309962344,1704239351562,-56.68064923,0.00035452,2]
[309962347,1704239368150,-93.31935077,0.00035452,2]
[309962348,1704239368173,-62.92212565,0.00035616,120]
[309962403,1704239433688,-129.71561935,0.00035616,120]
[309962405,1704239433699,-162.85841833,0.00038269,2]
[309962407,1704239433708,-278.0,0.0003874,2]
[309962409,1704239433718,-154.84515485,0.00039464,5]
[309962411,1704239433727,-181.820045,0.00039465,2]
[309962413,1704239433737,-7539.00412724,0.00041423,4]
[309962415,1704239433746,-973.51760014,0.00041423,2]
[309962418,1704239433755,-2412.9976458,0.00041682,2]
[309962421,1704239433764,-859.12199319,0.00043722,4]
[309962422,1704239433775,-527.18167335,0.00043722,4]
[309962424,1704239433784,-1000.0,0.00043723,7]
[309962426,1704239433794,-782.95690228,0.00043723,4]
[309962429,1704239433804,-495.31512757,0.00043724,5]
[309962431,1704239433813,-150.0,0.00043913,2]
[309962433,1704239433823,-192.637745,0.00044521,120]
[309962435,1704239433832,-150.0,0.00044641,2]
[309962437,1704239433841,-7213.4552676,0.000449,120]
[309962439,1704239433849,-391.23763496,0.00045,10]
[309962441,1704239433862,-419.16107855,0.00045853,7]
[309962442,1704239433871,-6426.21964914,0.00045925,2]
[309962444,1704239433880,-280.60046756,0.00045979,2]
[309962446,1704239433893,-384.0,0.00046,24]
[309962448,1704239433902,-1000.0,0.00046,30]
[309962450,1704239433911,-3083.49527,0.00046,39]
[309962452,1704239433922,-2928.684671,0.00046,39]
[309962454,1704239433931,-1500.0,0.00046,3]
[309962456,1704239433940,-16528.75918,0.00046001,4]
[309962458,1704239433949,-151.0,0.00046002,7]
[309962460,1704239433958,-359.712804,0.00046002,7]
[309962462,1704239433967,-359.712804,0.00046002,7]
[309962464,1704239433976,-16034.82,0.00046002,3]
[309962466,1704239433985,-14366.48355512,0.00046012,120]
[309962468,1704239433994,-151.0,0.00046012,7]
[309962470,1704239434003,-191.185386,0.00046012,2]
[309962472,1704239434013,-191.185386,0.00046012,2]
[309962473,1704239434021,-359.712804,0.00046012,7]
[309962475,1704239434030,-359.712804,0.00046012,7]
[309962477,1704239434039,-1348.59601334,0.00046013,5]
[309962479,1704239434048,-166.11596394,0.00046014,4]
[309962481,1704239434057,-696.34646197,0.00046014,4]
[309962483,1704239434068,-351.78344729,0.00046014,4]
[309962485,1704239434077,-5925.56332365,0.00046014,4]
[309962487,1704239434086,-150.0,0.00046017,60]
[309962489,1704239434096,-150.0,0.00046017,60]
[309962491,1704239434104,-252.98555116,0.00046024,10]
[309962493,1704239434113,-151.0,0.00046025,7]
[309962495,1704239434122,-151.0,0.00046025,7]
[309962497,1704239434132,-191.185386,0.00046025,2]
[309962499,1704239434141,-191.185386,0.00046025,2]
[309962501,1704239434150,-191.185386,0.00046025,2]
[309962503,1704239434159,-191.185386,0.00046025,2]
[309962504,1704239434168,-359.712804,0.00046025,7]
[309962506,1704239434178,-359.712804,0.00046025,7]
[309962508,1704239434187,-359.712804,0.00046025,7]
[309962510,1704239434198,-359.712804,0.00046025,7]
[309962512,1704239434207,-707.47983777,0.00046025,4]
[309962514,1704239434216,-271.35243145,0.00046025,4]
[309962516,1704239434225,-180.44799942,0.00046025,2]
[309962518,1704239434234,-260.478732,0.00046025,4]
[309962520,1704239434244,-175.1993806,0.00046025,2]
[309962522,1704239434256,-1721.07220697,0.00046025,4]
[309962524,1704239434265,-154.90705577,0.00046025,4]
[309962526,1704239434274,-329.31392712,0.00046025,4]
[309962528,1704239434284,-1134.80188716,0.00046025,4]
[309962530,1704239434293,-241.64792197,0.00046025,30]
[309962532,1704239434302,-160.49045629,0.00046025,4]
[309962534,1704239434311,-3494.86934315,0.00046025,4]
[309962536,1704239434321,-2816.63158754,0.00046025,4]
[309962538,1704239434332,-194.19729155,0.00046025,4]
[309962540,1704239434340,-1050.30153828,0.00046025,6]
[309962542,1704239434350,-285.73240169,0.00046025,2]
[309962543,1704239434359,-569.4761901,0.00046025,4]
[309962545,1704239434369,-7848.17357657,0.00046025,4]
[309962547,1704239434379,-1572.39221215,0.00046025,4]
[309962549,1704239434388,-3851.22045542,0.00046025,2]
[309962551,1704239434397,-242.83754625,0.00046025,7]
[309962553,1704239434407,-383.28765773,0.00046025,2]
[309962555,1704239434417,-2701.73501351,0.00046025,4]
[309962557,1704239434426,-766.53184072,0.00046025,2]
[309962559,1704239434435,-66.96768253,0.00046025,4]
[309962561,1704239434449,-755.57389251,0.00046025,4]
[309962563,1704239434458,-205.7096511,0.00046025,4]
[309962565,1704239434467,-4908.73713996,0.00046025,4]
[309962653,1704239438090,-163.75219479,0.00046023,4]
[309962654,1704239438100,-323.48227244,0.00046025,4]
[309962655,1704239438108,-271.77327293,0.00046025,30]
[309962656,1704239438118,-205.46009324,0.00046025,4]
[309962657,1704239438127,-239.89006234,0.00046025,4]
[309962658,1704239438136,-181.06627481,0.00046025,4]
[309962659,1704239438145,-590.09569667,0.00046025,2]
[309962660,1704239438154,-10683.86535706,0.00046025,4]
[309962661,1704239438166,-9298.86083319,0.00046025,4]
[309962662,1704239438179,-3971.970145,0.00046025,4]
[309962664,1704239438194,-666.7609947,0.00046025,4]
[309962665,1704239438204,-517.70835591,0.00046025,4]
[309962667,1704239438213,-262.28552739,0.00046025,4]
[309962668,1704239438222,-1208.56397594,0.00046025,4]
[309962670,1704239438231,-1118.20114604,0.00046025,4]
[309962672,1704239438243,-521.0003647,0.00046025,4]
[309962674,1704239438254,-29303.76919259,0.00046025,4]
[309962675,1704239438265,-527.12954456,0.00046025,4]
[309962750,1704239441181,-4062.15165445,0.00046025,4]
[309962751,1704239441196,-580.15900841,0.00046025,4]
[309962752,1704239441207,-67.68933717,0.00046026,4]
[309962791,1704239445952,-879.86975869,0.00046017,3]
[309962809,1704240431112,-169.18776199,0.00029873,20]
[309962810,1704240433106,-154.12664665,0.00029873,20]
[309962811,1704240452103,-136.73901458,0.00029873,20]
[309962812,1704240452124,-63.26098542,0.00029874,2]
[309962814,1704240549115,-911.08067674,0.00029874,2]
[309962815,1704240549136,-154.84515485,0.00029874,4]
[309962816,1704240549156,-450.74984902,0.00029876,2]
[309962817,1704240549182,-299.63891285,0.00029882,2]
[309962818,1704240549216,-886.89399904,0.00029992,2]
[309962819,1704240549236,-2309.49375549,0.0003,4]
[309962820,1704240549259,-167.623598,0.00031362,2]
[309962821,1704240549280,-167.623598,0.000335,2]
[309962822,1704240549300,-182.308733,0.00033887,2]
[309962823,1704240549321,-275.0,0.00033952,2]
[309962824,1704240549350,-6124.78597344,0.00033952,2]
[309962825,1704240556140,-18775.21402656,0.00033952,2]
[309962826,1704240556162,-192.038756,0.00033978,2]
[309962827,1704240556184,-1000.0,0.0003452,7]
[309962828,1704240556205,-1333.93641,0.00034521,2]
[309962829,1704240556226,-501.86850669,0.00035,7]
[309962830,1704240556248,-264.541738,0.00035616,120]
[309962831,1704240556270,-167.623598,0.00035637,2]
[309962832,1704240556291,-1333.93641,0.00035798,2]
[309962833,1704240556312,-150.0,0.00036055,2]
[309962834,1704240556334,-150.0,0.00036055,2]
[309962835,1704240556354,-275.0873236,0.00037,4]
[309962836,1704240556376,-1326.49498397,0.00037075,2]
[309962856,1704240632134,-7.44142603,0.00037075,2]
[309962858,1704240632144,-2726.93766926,0.00038,4]
[309962897,1704240638436,-2846.97278152,0.00038,4]
[309962900,1704240638457,-9466.03674899,0.00038,4]
[309962901,1704240638466,-6466.40399624,0.00038,3]
[309962903,1704240638477,-154.84515485,0.00038278,5]
[309962904,1704240638486,-2883.59721607,0.00038279,2]
[309962905,1704240638496,-634.03157271,0.00038279,2]
[309962906,1704240638505,-1333.93641,0.00038352,2]
[309962907,1704240638515,-386.32250438,0.00038546,2]
[309962908,1704240638525,-953.83668649,0.00038546,2]
[309962909,1704240638534,-260.0,0.00039342,2]
[309962910,1704240638543,-1333.93641,0.0003963,2]
[309962911,1704240638552,-22351.79970627,0.0003987,2]
[309962912,1704240638562,-454.22642426,0.0004,2]
[309962913,1704240638571,-5502.53184634,0.0004,2]
[309962914,1704240638580,-151.0,0.0004,2]
[309962915,1704240638590,-151.0,0.0004,2]
[309962916,1704240638599,-2407.5208482,0.00041096,15]
[309962917,1704240638608,-714.28227672,0.00041322,2]
[309962918,1704240638617,-895.00503871,0.00041421,2]
[309962919,1704240638626,-527.18167335,0.00041422,4]
[309962920,1704240638635,-4505.0327371,0.00041423,4]
[309962921,1704240638645,-264.541738,0.00041553,120]
[309962922,1704240638655,-300.0,0.00041799,30]
[309962923,1704240638664,-18340.75,0.00042084,3]
[309962924,1704240638674,-22008.9,0.00042094,3]
[309962925,1704240638683,-1088.49021121,0.00042134,15]
[309962926,1704240638692,-10023.84282196,0.00043,8]
[309962927,1704240638701,-1000.0,0.00043716,7]
[309962928,1704240638711,-497.24154266,0.00043717,5]
[309962929,1704240638720,-1000.0,0.00043739,14]
[309962930,1704240638730,-300.0,0.00043835,7]
[309962931,1704240638739,-30749.4660998,0.00043924,4]
[309962932,1704240638748,-151.0,0.00043924,2]
[309962933,1704240638757,-151.0,0.00043924,2]
[309962934,1704240638767,-151.0,0.00043924,7]
[309962935,1704240638776,-215.827683,0.00043924,7]
[309962936,1704240638785,-215.827683,0.00043924,7]
[309962937,1704240638795,-248.25715216,0.00043925,2]
[309962938,1704240638804,-1969.991472,0.00045,3]
[309962939,1704240638814,-213.97896341,0.00045,2]
[309962940,1704240638826,-521.0003647,0.00045,2]
[309962941,1704240638839,-9275.72940435,0.00045,2]
[309962942,1704240638849,-154.84515485,0.00045557,2]
[309962943,1704240638859,-150.83408251,0.00045643,2]
[309962944,1704240638869,-19722.36055088,0.000459,30]
[309962945,1704240638880,-527.12954456,0.000459,30]
[309963429,1704240646200,-706.41600495,0.00041095,20]
[309963431,1704240646210,-197.3326242,0.00044959,2]
[309963433,1704240646219,-821.78076708,0.000459,30]
[309969883,1704241548101,-157.0194235,0.0003,4]
[309969884,1704241548121,-154.84515485,0.0003,60]
[309969885,1704241548144,-685.0872895,0.0003,4]
[309969886,1704241548171,-669.8790554,0.00038,120]
[309969887,1704241641266,-183.15297591,0.00033994,4]
[309969888,1704241641287,-912.52990451,0.00033995,4]
[309969889,1704241641311,-154.82968734,0.00033996,5]
[309969890,1704241641332,-156.66790441,0.00033996,4]
[309969891,1704241641368,-618.11400433,0.00033996,20]
[309969892,1704241641388,-807.27659054,0.00038,120]
[309969893,1704241641411,-1000.0,0.00038149,7]
[309969894,1704241641432,-184.71119037,0.0003815,2]
[309969895,1704241641456,-302.68775398,0.00038255,2]
[309969896,1704241641479,-176.81221083,0.00038307,2]
[309969897,1704241641501,-191.547275,0.00040588,2]
[309969898,1704241641540,-564.091032,0.00041005,2]
[309969899,1704241641562,-173.251015,0.00041376,2]
[309969900,1704241641585,-173.251015,0.00041376,2]
[309969901,1704241641607,-173.251015,0.00041376,2]
[309969902,1704241641629,-2257.92724956,0.00041422,4]
[309969903,1704241654097,-154.82968734,0.0003762,2]
[309969904,1704241654125,-406.55953591,0.00041422,4]
[309969905,1704241654153,-33.23790117,0.00041423,2]
[309969906,1704241751091,-154.84515485,0.0003,60]
[309969963,1704241832336,-68.98576715,0.0003,60]
[309969966,1704241832346,-154.82968734,0.00041008,8]
[309969969,1704241832355,-297.73787857,0.00041009,2]
[309969972,1704241832366,-940.69172998,0.00041423,2]
[309969975,1704241832375,-7043.55676724,0.00041423,4]
[309969977,1704241832385,-1114.57214449,0.00041423,20]
[309969997,1704241832512,-3885.42785551,0.00041423,20]
[309969999,1704241832523,-732.48831537,0.00041423,4]
[309970001,1704241832533,-172.536963,0.00041425,120]
[309970003,1704241832542,-706.41600495,0.00041876,20]
[309970004,1704241832553,-1000.0,0.00041876,7]
[309970006,1704241832562,-1737.0836135,0.00041877,2]
[309970007,1704241832572,-564.091032,0.00042523,2]
[309970009,1704241832583,-150.0,0.00042658,2]
[309970010,1704241832593,-403.13581622,0.000429,2]
[309970011,1704241832603,-495.31512757,0.00043603,5]
[309970012,1704241832615,-220.30351936,0.0004381,5]
[309970013,1704241832626,-564.091032,0.0004404,2]